Cogmind - Beta 15 @@@ ROGUE MODE // 2025.06.17 @ 01:37:49 Player: puppuppit Result: Destroyed by G-67 Veteran with Plasma Rifle Performance ------------- Evolutions (5) 2500 Regions Visited (6) 1200 Robots Destroyed (160) 800 Value Destroyed (4705) 4705 Prototype IDs (9) 180 Alien Tech Used (0) 0 Bonus (1421) 1421 TOTAL SCORE: 10806 Bonus ------- High Alert Combat Kills 502 Follower Combat Kills 387 Registered with UFD 300 Met Optimus in HQ 500 Friendly Fire -268 Cogmind --------- Core Integrity 0/1000 Matter 265/300 Energy 61/100 System Corruption 48% Temperature Cool (9) Movement Core (50) Location -5/Factory Parts ------- > --- POWER (1) -------- (None) > --- PROPULSION (5) --- (None) > --- UTILITY (6) ------ Improved Target Analyzer Improved Target Analyzer Improved System Shield > --- WEAPON (5) ------- (None) > --- INVENTORY (5) ---- Micro Fission Core Fusion Reactor Fusion Reactor Improved Heat Sink Improved Kinecellerator Peak State ------------ > --- POWER ------------ Quantum Reactor > --- PROPULSION ------- Antigrav System Antigrav System Antigrav System Antigrav System Antigrav System > --- UTILITY ---------- Large Storage Unit Advanced Weight Redist. System Experimental Targeting Computer Hacking Suite Hacking Suite Improved System Shield > --- WEAPON ----------- KE Penetrator KE Penetrator KE Penetrator Hypervelocity Coil Gun Hypervelocity Gauss Cannon > --- INVENTORY -------- Micro Fission Core Quantum Reactor Improved Hover Unit Improved Hover Unit Improved Linear Gravjet Improved Coolant Injector System Shield Coil Gun Hypervelocity Gauss Rifle Hypervelocity Gauss Rifle Battle Cannon Hypervelocity Gauss Cannon Mini Grenade Launcher Improved Remote Datajack Botcube [Rating: 97] Favorites ----------- Power Nuclear Core Engine Subdweller Power Source Power Core Nuclear Core Reactor Quantum Reactor Propulsion Antigrav System Treads Light Treads Leg Improved Titanium Leg Wheel Compact Wheel Hover Unit Antigrav System Flight Unit VTOL Module Utility Large Storage Unit Device Improved Terrain Scanner Storage Large Storage Unit Processor Core Analyzer Hackware Hacking Suite Protection Makeshift Light Armor Plating Weapon KE Penetrator Energy Gun Tesla Rifle Energy Cannon Subdweller Beam Cannon Ballistic Gun KE Penetrator Ballistic Cannon Battle Cannon Launcher Grenade Launcher Special Weapon Improved Remote Datajack Build | -11 -10 -10 -7 -5 -5 -5 ------- Run | Yrd Mat Sub Scr Fac Was Fac Slots Evolved 10 | . . . . 10 . . Power . | . . . . . . . Propulsion 3 | . . . . 3 . . Utility 4 | . . . . 4 . . Weapon 3 | . . . . 3 . . Parts Attached 129 | 6 7 15 9 31 3 58 Power 15 | 1 1 2 1 2 . 8 Engine 4 | 1 . 2 . . . 1 Core 9 | . 1 . 1 2 . 5 Reactor 2 | . . . . . . 2 Propulsion 37 | 2 . 4 6 10 . 15 Treads 5 | 2 . 2 1 . . . Leg 1 | . . . 1 . . . Wheel 13 | . . 2 4 1 . 6 Hover 15 | . . . . 8 . 7 Flight 3 | . . . . 1 . 2 Utility 40 | 1 4 4 1 10 2 18 Device 13 | 1 1 1 . 5 1 4 Storage 5 | . 2 1 1 . . 1 Processor 12 | . . . . 3 1 8 Hackware 6 | . . . . 2 . 4 Protection 4 | . 1 2 . . . 1 Artifact . | . . . . . . . Weapon 37 | 2 2 5 1 9 1 17 Energy Gun 3 | . . . . . . 3 Energy Cannon 2 | . . 2 . . . . Ballistic Gun 20 | 2 1 1 . 5 1 10 Ballistic Cannon 7 | . 1 1 1 1 . 3 Launcher 3 | . . 1 . 2 . . Special Weapon 2 | . . . . 1 . 1 Impact Weapon . | . . . . . . . Slashing Weapon . | . . . . . . . Piercing Weapon . | . . . . . . . Special Melee Weapon . | . . . . . . . Unidentified Prototypes 5 | . . . . 2 . 3 Parts Lost 61 | . . 8 . 2 . 51 Power 5 | . . 1 . . . 4 Propulsion 25 | . . 3 . 1 . 21 Utility 8 | . . 1 . . . 7 Weapon 23 | . . 3 . 1 . 19 Highest Loss Streak 18 | . . 2 . 1 . 18 To Critical Strikes 1 | . . 1 . . . . Average Backups 10 | . 7 13 12 10 11 9 Power . | . . . . 1 1 1 Propulsion 1 | . 1 2 . 1 3 1 Utility 3 | . 2 3 5 4 1 1 Weapon 4 | . 3 6 5 2 4 3 Tool/Special . | . . . . . . . Unused Backups 25 | . . 1 6 6 2 10 Power 7 | . . . 1 1 . 5 Propulsion 1 | . . . . . 1 . Utility 9 | . . . . 5 1 3 Weapon 8 | . . 1 5 . . 2 Tool/Special . | . . . . . . . Average Slot Usage (%) 92 | . 97 93 98 91 96 81 Engine 2 | . 5 5 3 . . . Core 6 | . 8 6 10 5 5 2 Treads 9 | . 28 20 9 . . . Leg 2 | . . . 9 . . . Wheel 5 | . . 3 7 10 . 2 Hover 7 | . . . . 13 29 18 Device 4 | . 11 6 . 2 4 5 Storage 9 | . 9 14 14 5 5 3 Processor 4 | . . . . 11 8 9 Hackware 4 | . . . . 10 11 12 Protection 6 | . 4 7 14 2 . . Ballistic Gun 10 | . 14 13 . 13 19 14 Ballistic Cannon 13 | . 13 13 25 10 5 2 Peak Build Rating 97 | 8 12 17 27 84 87 97 Average Rating 39 | 5 9 12 23 65 85 70 On Entrance 32 | . 8 10 17 22 82 87 Naked Turns . | . . . . . . . Heaviest Build 64 | 8 33 40 42 63 57 64 Greatest Support 64 | 40 40 40 40 51 51 64 Greatest Overweight (x) 4 | . . 1 2 2 1 4 Average Overweight (x) . | . . . 1 . . . Largest Inventory Capacity 15 | 5 15 15 15 15 15 15 Average Capacity 13 | 5 11 15 15 15 15 11 Most Carried 15 | 1 12 15 15 15 15 15 Average Carried 12 | . 7 14 13 13 13 10 Final Capacity 15 | 5 15 15 15 15 15 5 Final Carried 15 | 1 12 15 15 15 13 5 Class Distribution -------------------- 35% | Mutant 23% | Derelict-Mutant 21% | Scavenger-Gunner 12% | Hacker-Gunner Dominant Class ---------------- Mutant | -10/Materials Mutant | -10/Subcaves Derelict-Mutant | -7/Scraptown Hacker-Gunner | -5/Factory Scavenger-Gunner | -5/Waste Scavenger-Gunner | -5/Factory Resources | -11 -10 -10 -7 -5 -5 -5 ----------- Run | Yrd Mat Sub Scr Fac Was Fac Matter Collected 7166 | 360 387 803 140 1621 1090 2765 Remotely . | . . . . . . . Salvage Created 8023 | 193 813 376 . 2345 1066 3230 Parts 372 | 18 64 27 . 103 19 141 Haulers Intercepted 5 | . 1 . . 2 . 2 Recyclers Shooed 11 | . 1 . . 4 . 6 Parts Field Recycled . | . . . . . . . Retrieved Matter . | . . . . . . . Parts Self-Destructed 4 | . . 4 . . . . Prevented . | . . . . . . . Kills | -11 -10 -10 -7 -5 -5 -5 ------- Run | Yrd Mat Sub Scr Fac Was Fac Combat Hostiles Destroyed 79 | . 9 17 . 18 4 31 Guns 41 | . 3 2 . 9 3 24 Cannons 23 | . 6 6 . 4 1 6 AOE 14 | . . 9 . 4 . 1 Classes Destroyed 17 | 3 7 2 . 2 1 2 Worker 24 | 2 7 . . 5 . 10 Builder 10 | . 3 . . 2 . 5 Tunneler 8 | 5 2 . . 1 . . Hauler 5 | . 1 . . 2 . 2 Recycler 17 | 1 4 . . 5 . 7 Mechanic 3 | . 1 . . 2 . . Operator 3 | . 1 . . 1 . 1 Turret 2 | . . 2 . . . . Watcher 7 | . 3 . . 4 . . Swarmer 10 | . 3 4 . . . 3 Grunt 33 | . 6 2 . 11 . 14 Sentry 5 | . . . . 1 . 4 Hunter 4 | . . . . . . 4 Programmer 12 | . . . . 6 . 6 Compactor 4 | . . . . . 4 . Subdweller 11 | . . 11 . . . . Scrapoid 1 | . . . . . . 1 Thug 1 | . . . . . 1 . Best Kill Streak 16 | 6 8 5 . 6 2 16 Combat Bots Only 11 | . 3 4 . 5 2 11 Max Kills in Single Turn 4 | 1 1 1 . 4 1 3 Gunslinging 1 | . . . . . . 1 Exploded 4 | . . 1 . 4 . 1 Melee . | . . . . . . . Uniques/NPCs Destroyed . | . . . . . . . Combat | -11 -10 -10 -7 -5 -5 -5 -------- Run | Yrd Mat Sub Scr Fac Was Fac Hostile Shots Fired 595 | . 44 98 . 53 . 400 Missed 177 | . 13 33 . 14 . 117 Hits 418 | . 31 65 . 39 . 283 Projectile 418 | . 31 65 . 39 . 283 AOE 2 | . . . . . . 2 Critical Strikes 21 | . 1 3 . 3 . 14 Actively Blocked 2 | . . . . 2 . . Part Disruptions 1 | . . . . . . 1 Damage Taken 7794 | . 331 1055 . 805 . 5603 Core 1233 | . 33 194 . 169 . 837 Absorbed by Shields . | . . . . . . . Redirected to Shielding 40 | . . . . 40 . . Regen/Repaired (Parts) 115 | . . . . 64 . 51 Core Remaining (%) 54 | 100 . . 9 . . . Volleys Fired 405 | 25 60 63 . 72 20 165 Largest 5 | 2 2 2 . 5 5 5 Hottest 255 | 40 50 113 . 184 165 255 Shots Fired 1032 | 50 120 107 . 248 90 417 Gun 740 | 50 61 38 . 171 72 348 Cannon 257 | . 59 40 . 75 18 65 Launcher 33 | . . 29 . 2 . 2 Special 2 | . . . . . . 2 Kinetic 949 | 50 120 76 . 246 90 367 Thermal 24 | . . 2 . . . 22 Explosive 33 | . . 29 . 2 . 2 Electromagnetic 24 | . . . . . . 24 Robot Hit Streak 27 | 8 11 27 . 12 6 20 Robot Miss Streak 7 | 1 4 1 . 7 7 7 Penetration Max 1 | . . . . 1 1 1 Secondary Targets 2 | . . . . . . 2 Max Gunslinging Chain 1 | . . . . . . 1 Shots Hit Robots 586 | 37 76 72 . 132 47 222 Core Hits 326 | 16 43 45 . 92 13 117 Critical Kills 31 | . 1 . . 6 3 21 Critical Parts Destroyed 32 | 1 . . . 13 . 18 Critical Strikes 76 | 1 3 2 . 21 5 44 Destroy 69 | 1 1 . . 20 5 42 Blast 5 | . 2 2 . 1 . . Corrupt 2 | . . . . . . 2 Melee Attacks . | . . . . . . . Impact . | . . . . . . . Slashing . | . . . . . . . Piercing . | . . . . . . . Sneak Attacks . | . . . . . . . Combat Hostiles . | . . . . . . . Follow-up Attacks . | . . . . . . . Damage Inflicted 14518 | 288 1066 2356 . 3642 1197 5969 Guns 8829 | 288 406 425 . 1964 896 4850 Cannons 2985 | . 660 490 . 925 301 609 Explosions 2704 | . . 1441 . 753 . 510 Melee . | . . . . . . . Ramming . | . . . . . . . Kinetic 10956 | 288 1066 888 . 2889 1197 4628 Thermal 692 | . . 27 . . . 665 Explosive 1836 | . . 1441 . 152 . 243 Electromagnetic 1034 | . . . . 601 . 433 Impact . | . . . . . . . Slashing . | . . . . . . . Piercing . | . . . . . . . Highest Corruption 48 | . 1 1 . . 38 48 Average Corruption 19 | . 1 1 . . 20 41 Corruption Purged . | . . . . . . . Corruption Blocked . | . . . . . . . Effects 202 | . 2 20 . . 20 160 Message Errors 41 | . . 1 . . 3 37 Matter Fused 33 | . . 7 . . 4 22 Heat Flow Errors 18 | . . 2 . . 1 15 Energy Discharges 18 | . 2 4 . . 3 9 Parts Rejected 3 | . . 1 . . . 2 Parts Fused 4 | . . . . . 1 3 Data Loss (minor) 9 | . . 3 . . . 6 Data Loss (major) 3 | . . . . . . 3 Misfires 5 | . . . . . 1 4 Alerts 7 | . . 2 . . 1 4 Misdirections 13 | . . . . . 2 11 Weapon Failures 48 | . . . . . 4 44 Overload Shots 10 | . . . . . . 10 Overflow Damage 68 | . 2 . . 1 . 65 Projectiles 3 | . 2 . . 1 . . Explosions 65 | . . . . . . 65 Melee . | . . . . . . . Knockbacks 16 | . 5 2 . 6 . 3 Impact . | . . . . . . . Kinetic 16 | . 5 2 . 6 . 3 Secondary . | . . . . . . . Self-Inflicted Damage 190 | . . 28 . . . 162 Shots 7 | . . 2 . . . 5 Rammed . | . . . . . . . Targets Rammed . | . . . . . . . Kicked . | . . . . . . . Crushed . | . . . . . . . Highest Temperature 512 | . 148 171 . 264 333 512 Average Temperature 96 | . 24 63 . 103 110 103 Received Heat Transfer 1899 | . 144 351 . 99 . 1305 Effects 7 | . . . . . . 7 Shutdowns 1 | . . . . . . 1 Energy Bleed 2 | . . . . . . 2 Interference 2 | . . . . . . 2 Matter Decay 1 | . . . . . . 1 Damage (major) 1 | . . . . . . 1 Siege Activations . | . . . . . . . Martial Activations . | . . . . . . . Shielding Activations . | . . . . . . . Robots Disrupted 1 | . . . . 1 . . Combat Hostiles 1 | . . . . 1 . . Robots Corrupted 1 | . . . . 1 . . Combat Hostiles 1 | . . . . 1 . . Parts Fried 7 | . . . . 4 2 1 Impact Corruptions . | . . . . . . . Robots Melted . | . . . . . . . Combat Hostiles . | . . . . . . . Parts Melted 1 | . . . . . . 1 Heat Transferred 831 | . . 37 . . . 794 Parts Sabotaged . | . . . . . . . Parts Stolen . | . . . . . . . Parts Stripped . | . . . . . . . Power Chain Reactions 1 | . . . . . . 1 Alert | -11 -10 -10 -7 -5 -5 -5 ------- Run | Yrd Mat Sub Scr Fac Was Fac Maximum Alert Level 4 | . . . . 2 . 4 Low Security (%) 67 | 100 100 . . 61 100 47 Level 1 13 | . . . . 38 . 2 Level 2 8 | . . . . . . 21 Level 3 7 | . . . . . . 19 Level 4 3 | . . . . . . 9 Level 5 . | . . . . . . . High Security . | . . . . . . . Max Security . | . . . . . . . Peak Influence 1263 | 15 68 . . 402 136 1263 Initial 134 | . . . . . 134 . Average 236 | 3 23 . . 175 61 446 Influence Increases 4217 | 40 348 500 . 936 4 2389 Destroy 0b10 Robot/C 1460 | . 180 160 . 360 . 760 Destroy 0b10 Robot/NC 395 | 40 110 . . 110 . 135 Destroy Leader 316 | . 38 10 . 72 . 196 Allied During Kill 80 | . . . . . . 80 Trap Triggered on 0b10 20 | . . . . 10 . 10 Successful Hack 139 | . 19 . . 32 . 88 Disable Machine 435 | . . . . 225 . 210 Destroy Structure 337 | . 1 . . 112 4 220 Partial Spotted 45 | . . . . 15 . 30 Lose Combat Pursuer 990 | . . 330 . . . 660 Influence Decreases 3018 | 40 347 274 227 551 389 1190 Entered New Map 479 | . . 1 227 . 251 . Time Decay 1859 | 40 347 223 . 531 138 580 Lost Part 580 | . . 50 . 20 . 510 Lost Ally 100 | . . . . . . 100 Squads Dispatched 26 | . 1 . . 9 . 16 Investigation 9 | . 1 . . 4 . 4 Extermination 7 | . . . . 3 . 4 Reinforcement 5 | . . . . 2 . 3 Assault 1 | . . . . . . 1 Garrison 4 | . . . . . . 4 Intercept . | . . . . . . . Searches Triggered . | . . . . . . . Construction Impeded 2 | . . . . . . 2 Haulers Reinforced 3 | . . . . 2 . 1 Active Scanning Responses . | . . . . . . . Cargo Convoy Interrupts 1 | . . . . 1 . . Stealth | -11 -10 -10 -7 -5 -5 -5 --------- Run | Yrd Mat Sub Scr Fac Was Fac Distress Signals 5 | . 2 . . 1 . 2 Communications Jammed . | . . . . . . . Distress Signals . | . . . . . . . Times Spotted 170 | . 14 24 . 28 5 99 Peak Tracking Total 12 | . 3 5 . 5 2 12 Tactical Retreats 21 | . . 3 . . . 18 Traps | -11 -10 -10 -7 -5 -5 -5 ------- Run | Yrd Mat Sub Scr Fac Was Fac Traps Triggered 8 | . 1 . . 4 . 3 Indirectly . | . . . . . . . Trap Hack Attempts . | . . . . . . . Triggered . | . . . . . . . Disarmed . | . . . . . . . Reprogrammed 8 | . . . . . . 8 Reused 2 | . . . . 1 . 1 Traps Extracted . | . . . . . . . Installed 1 | . . . . 1 . . Triggered 2 | . . . . 1 . 1 Most Traps Carried 1 | . . . 1 1 . . Machines | -11 -10 -10 -7 -5 -5 -5 ---------- Run | Yrd Mat Sub Scr Fac Was Fac Machines Disabled 32 | . . 3 . 15 . 14 Max in Single Turn 7 | . . 3 . 7 . 4 Garrison Access 1 | . . . . 1 . . Machines Repaired . | . . . . . . . Machines Dismantled . | . . . . . . . Machines Sabotaged . | . . . . . . . Overloaded Fab Kills . | . . . . . . . Hacking | -11 -10 -10 -7 -5 -5 -5 --------- Run | Yrd Mat Sub Scr Fac Was Fac Machines Accessed 40 | . 7 . 2 11 . 20 Terminals 19 | . 7 . . 3 . 9 Fabricators 4 | . . . . 2 . 2 Repair Stations 3 | . . . . 1 . 2 Recycling Units 6 | . . . . 3 . 3 Scanalyzers 3 | . . . . 1 . 2 Garrison Access 3 | . . . . 1 . 2 Total Hacks 144 | . 26 . 9 30 . 79 Successful 73 | . 11 . 9 23 . 30 Failed 70 | . 14 . . 7 . 49 Catastrophic 10 | . 1 . . . . 9 Database Lockouts 1 | . 1 . . . . . Manual 57 | . 26 . . 5 . 26 Terminals 79 | . 26 . . 10 . 43 Fabricators 11 | . . . . 4 . 7 Repair Stations 16 | . . . . 3 . 13 Recycling Units 8 | . . . . 4 . 4 Scanalyzers 16 | . . . . 7 . 9 Garrison Access 5 | . . . . 2 . 3 Terminal Hacks 30 | . 4 . 9 5 . 12 Record 3 | . . . 3 . . . Robot Analysis 9 | . 3 . 6 . . . Prototype ID Bank 2 | . . . . 1 . 1 Open Door 1 | . . . . 1 . . Branch Access Points 2 | . . . . 1 . 1 Emergency Access Points 1 | . . . . 1 . . Terminal Index 1 | . . . . . . 1 Locate Traps 1 | . 1 . . . . . Reprogram Traps 3 | . . . . . . 3 Reinforcement Status 1 | . . . . . . 1 Recall Investigation 2 | . . . . . . 2 Recall Reinforcements 1 | . . . . . . 1 Zone Layout 3 | . . . . 1 . 2 Fabricator Hacks 6 | . . . . 3 . 3 Network Status 2 | . . . . 1 . 1 Load Schematic 2 | . . . . 1 . 1 Build 2 | . . . . 1 . 1 Repair Station Hacks 5 | . . . . 2 . 3 Scan Component 3 | . . . . 1 . 2 Repair 2 | . . . . 1 . 1 Recycling Unit Hacks 1 | . . . . 1 . . Report Inventory 1 | . . . . 1 . . Scanalyzer 8 | . . . . 6 . 2 Insert Component 4 | . . . . 3 . 1 Analyze 4 | . . . . 3 . 1 Garrison Access Hacks 1 | . . . . 1 . . Seal Access 1 | . . . . 1 . . Unauthorized Hacks 22 | . 7 . . 5 . 10 Terminals 16 | . 7 . . 2 . 7 Botnet 16 | . 7 . . 2 . 7 Fabricators . | . . . . . . . Repair Stations . | . . . . . . . Recycling Units 6 | . . . . 3 . 3 Fedlink 6 | . . . . 3 . 3 Scanalyzers . | . . . . . . . Garrison Access . | . . . . . . . Data Cores Recovered 2 | . . . . . . 2 Used 1 | . . . . . . 1 Hacking Detections 31 | . 7 . . 7 . 17 Full Trace Events 3 | . 2 . . 1 . . Feedback Events 1 | . 1 . . . . . Corruption 1 | . 1 . . . . . Feedback Blocked . | . . . . . . . Robot Schematics Acquired . | . . . . . . . Robots Built . | . . . . . . . Authchips . | . . . . . . . Time . | . . . . . . . Total Robot Build Rating . | . . . . . . . Part Schematics Acquired 4 | . . . . 3 . 1 Parts Built 4 | . . . . 2 . 2 Authchips . | . . . . . . . Time 164 | . . . . 95 . 69 Total Part Build Rating 28 | . . . . 10 . 18 Parts Repaired 2 | . . . . 1 . 1 Time 102 | . . . . 16 . 86 Parts Recycled . | . . . . . . . Recycled Matter . | . . . . . . . Retrieved Matter . | . . . . . . . Retrieved Components . | . . . . . . . Parts Scanalyzed 4 | . . . . 3 . 1 Part Schematics Acquired 4 | . . . . 3 . 1 Parts Damaged . | . . . . . . . Bothacking | -11 -10 -10 -7 -5 -5 -5 ------------ Run | Yrd Mat Sub Scr Fac Was Fac Used RIF Installer . | . . . . . . . Robots Hacked 1 | . . . . . . 1 Non-combat 1 | . . . . . . 1 Combat . | . . . . . . . Robot Hacks Applied 1 | . . . . . . 1 find_recycling 1 | . . . . . . 1 Relay Couplers Released . | . . . . . . . Fabnet Peak Effective % . | . . . . . . . Robots Rewired . | . . . . . . . Allies Hacked . | . . . . . . . Hacks Repelled . | . . . . . . . Allies | -11 -10 -10 -7 -5 -5 -5 -------- Run | Yrd Mat Sub Scr Fac Was Fac Total Allies 7 | . . . . . 1 6 Largest Group 5 | . . . . . 1 5 Highest-Rated Group 235 | . . . . . 31 235 Highest-Rated Ally 47 | . . . . . 31 47 Total Orders . | . . . . . . . Ally Attacks 80 | . . . . . 30 50 Total Damage 1743 | . . . . . 487 1256 Kills 11 | . . . . . 2 9 Allies Corrupted . | . . . . . . . Allies Melted . | . . . . . . . Intel | -11 -10 -10 -7 -5 -5 -5 ------- Run | Yrd Mat Sub Scr Fac Was Fac Active Infowar (turns) 2429 | 39 717 787 . 790 . 96 Optics 475 | . . . . 379 . 96 Terrain 1543 | 39 717 787 . . . . Machine Analysis 411 | . . . . 411 . . Robot Analysis Total 9 | . 3 . 6 . . . Derelict Logs Recovered 6 | . . 1 5 . . . Drone Launches . | . . . . . . . Drone Recoveries . | . . . . . . . Exploration | -11 -10 -10 -7 -5 -5 -5 ------------- Run | Yrd Mat Sub Scr Fac Was Fac Turns Passed 9304 | 147 1017 1816 2395 1654 329 1946 Spaces Moved 6249 | 48 454 952 1202 1369 152 2072 Core 15 | 3 . . . . . 12 Treads 1388 | 45 454 764 125 . . . Legs 498 | . . . 498 . . . Wheels 1562 | . . 188 579 730 . 65 Hover 2307 | . . . . 639 152 1516 Flight 479 | . . . . . . 479 Fastest Speed 35 | 50 160 110 110 40 44 35 Average Speed 112 | 153 160 160 196 82 91 51 Slowest Speed 330 | 160 160 240 330 201 104 250 Overloaded Moves . | . . . . . . . Propulsion Burnouts . | . . . . . . . Robots Hopped 6 | . . . . . . 6 Potential Cave-ins . | . . . . . . . Cave-ins Triggered . | . . . . . . . Exploration Rate (%) 48 | 4 61 49 82 21 76 44 Regions Visited 6 Branch Regions 2 Pre-discovered Areas 4 | . . 1 2 1 . . Known Exits Taken . | . . . . . . . Unknown Exits Taken 4 | 1 1 1 1 . . . Scrap Searched 6 | . . 3 3 . . . Spaces Dug 6 | . . . . . . 6 Terrain Destroyed 315 | . . 113 . 78 3 121 Melee . | . . . . . . . Projectile 46 | . . . . 23 3 20 AOE 265 | . . 113 . 55 . 97 Terrain Rammed . | . . . . . . . Walls Destroyed . | . . . . . . . Machines Disabled . | . . . . . . . Actions | -11 -10 -10 -7 -5 -5 -5 --------- Run | Yrd Mat Sub Scr Fac Was Fac Total 7702 | 79 632 1129 1242 1722 288 2610 Wait 656 | . 100 56 . 189 105 206 Move 6233 | 47 453 951 1201 1369 151 2061 Hop 5 | . . . . . . 5 Pick Up 101 | 1 10 20 14 23 2 31 Fast Attach 60 | 6 2 2 1 9 . 40 Attach 54 | . . 9 1 13 1 30 Detach 30 | . . 1 1 7 2 19 Swap 75 | . 5 16 8 19 4 23 Drop 82 | . 2 11 16 20 3 30 Fire 405 | 25 60 63 . 72 20 165 Melee . | . . . . . . . Ram . | . . . . . . . Kick . | . . . . . . . Crush . | . . . . . . . Escape Stasis . | . . . . . . . Rewire . | . . . . . . . Trap 1 | . . . . 1 . . Miscellaneous . | . . . . . . . Route ------- -11/Scrapyard -10/Materials (discovered 4 exits: [*Mat x2] / [*Min] / [*Sub]) -10/Subcaves (discovered 4 exits: [*Mat x2] / [*Rec] / *Scr) -7/Scraptown (discovered 2 exits: *Fac x2) -5/Factory (discovered 4 exits: Upp x2 / *Ext x2) -5/Waste -5/Factory (discovered 5 exits: [*Fac] / Upp x2 / Ext x2) History --------- Turn | Location | Event 8 | -11/Scrapyard | Discovered new exit (range 15) 148 | -11/Scrapyard | Entered Materials 285 | -10/Materials | Discovered new exit (range 11) 304 | -10/Materials | Build established: Mutant 671 | -10/Materials | Discovered new exit (range 16) 851 | -10/Materials | Central database locked down 993 | -10/Materials | Discovered new exit (range 15) 1128 | -10/Materials | Discovered new exit (range 7) 1165 | -10/Materials | Entered Subcaves 1166 | -10/Subcaves | Approached by a straggling Scientist 1217 | -10/Subcaves | Learned location of Zion (-7) 1217 | -10/Subcaves | Met a Zionite searching for "candidates" 1420 | -10/Subcaves | Discovered new exit (range 10) 1453 | -10/Subcaves | Shifting Twisted Machinery released Sub. Laser 1460 | -10/Subcaves | Scientist uncovered a shortcut to Scraptown 1519 | -10/Subcaves | Shifting Twisted Machinery released Sub. Monowheel 1564 | -10/Subcaves | Discovered new exit (range 4) 2008 | -10/Subcaves | Learned Materials emergency access door positions 2024 | -10/Subcaves | Shifting Twisted Machinery released Battle Cannon 2166 | -10/Subcaves | Discovered new exit (range 14) 2207 | -10/Subcaves | Core integrity fell below 50% 2507 | -10/Subcaves | Curiously followed by a Cobbler waking with a query about "LVR3C" 2741 | -10/Subcaves | Core integrity fell below 20% 2981 | -10/Subcaves | Entered Scraptown 2981 | -7/Scraptown | System corruption cleaned by C-Scrubber 3080 | -7/Scraptown | Scanned Subdweller tech in exchange for log data 3082 | -7/Scraptown | Learned location of Quarantine (-3) 3083 | -7/Scraptown | Learned location of 1 exit from Research 3087 | -7/Scraptown | Learned Factory garrison access intel 3088 | -7/Scraptown | Learned 12 Research zone layouts 3156 | -7/Scraptown | Visited UFD Registry 3156 | -7/Scraptown | Registered with UFD as "Plasmaslider" 3219 | -7/Scraptown | Discovered new exit (range 11) 3247 | -7/Scraptown | Guru changed UFD alias to "Mononinja" 3270 | -7/Scraptown | Build established: Derelict-Mutant 3864 | -7/Scraptown | Visited TADAMA 3907 | -7/Scraptown | Visited Awakened 3994 | -7/Scraptown | Visited Analyses Database 4058 | -7/Scraptown | Visited Scrapoid Pod Storage 4073 | -7/Scraptown | Found Scrapoid Pod 4125 | -7/Scraptown | Visited Botcube Research 4214 | -7/Scraptown | Delivered Scrap Shield to a Scientist 4348 | -7/Scraptown | Visited Science Testing Area 4429 | -7/Scraptown | Visited Science Guys 4533 | -7/Scraptown | Visited Abandonware Association 4560 | -7/Scraptown | Learned abandonware demo "MELTYB.EXE" 4635 | -7/Scraptown | Visited Junk Repository 4727 | -7/Scraptown | Visited Curators Association 5262 | -7/Scraptown | Found Botcube 5307 | -7/Scraptown | Met Optimus 5307 | -7/Scraptown | Accepted into 0bPrime 5373 | -7/Scraptown | Discovered new exit (range 3) 5376 | -7/Scraptown | Entered Factory 5376 | -5/Factory | Evolved 10 slots: Propulsion x3, Utility x4, Weapon x3 5377 | -5/Factory | Loaded intel: 4 garrison access locations 5427 | -5/Factory | Loaded intel: 8 recycling unit locations 5461 | -5/Factory | Identified exit to Upper Caves 5461 | -5/Factory | Identified exit to Extension 5733 | -5/Factory | Repaired Battle Cannon 5813 | -5/Factory | Learned location of Protoforge (-3) 5852 | -5/Factory | Build established: Hacker-Gunner 6126 | -5/Factory | Cargo convoy interrupted 6388 | -5/Factory | Found Prototype Launcher 6388 | -5/Factory | Identified Rocket Array 6832 | -5/Factory | Fabricated Hyp. Gauss Rifle (x2) 6857 | -5/Factory | Build established: Scavenger-Gunner 7030 | -5/Factory | Sucked down chute 7030 | -5/Factory | Entered Waste 7031 | -5/Waste | Met a frightened Derelict 7037 | -5/Waste | Spotted C-40 Crusher 7037 | -5/Waste | Destroyed C-40 Crusher 7041 | -5/Waste | Destroyed C-40 Crusher 7045 | -5/Waste | EMP discharged 7045 | -5/Waste | Spotted C-40 Crusher 7054 | -5/Waste | System corruption reached 10% 7064 | -5/Waste | Allies destroyed C-40 Crusher 7088 | -5/Waste | Spotted C-40 Crusher 7099 | -5/Waste | Allies destroyed C-40 Crusher 7103 | -5/Waste | Spotted C-40 Crusher 7112 | -5/Waste | Destroyed C-40 Crusher 7145 | -5/Waste | EMP discharged 7147 | -5/Waste | Discovered new exit (range 13) 7245 | -5/Waste | EMP discharged 7247 | -5/Waste | Spotted C-40 Crusher 7298 | -5/Waste | Destroyed C-40 Crusher 7345 | -5/Waste | EMP discharged 7345 | -5/Waste | System corruption reached 30% 7359 | -5/Waste | Entered Factory 7391 | -5/Factory | Scrapoid Pod released 05F06-D (x5) 7565 | -5/Factory | Repaired Broken Imp. Linear Gravjet 7712 | -5/Factory | Fabricated Quantum Reactor (x2) 7726 | -5/Factory | Found Prototype Processor 7726 | -5/Factory | Identified Exp. Targeting Computer 7918 | -5/Factory | Loaded intel: 8 recycling unit locations 8070 | -5/Factory | Lost 3 allies 8408 | -5/Factory | Lost 18 parts (9n1u8w) 8415 | -5/Factory | Destroyed 11 combat bots 8558 | -5/Factory | Lost 3 parts (1p1n1w) 8560 | -5/Factory | Core integrity fell below 50% 8642 | -5/Factory | Lost 11 parts (1p5n1u4w) 8859 | -5/Factory | First assault squad dispatched 8883 | -5/Factory | Core integrity fell below 20% 8922 | -5/Factory | Discovered new exit (range 16) 8932 | -5/Factory | Botcube activated 8940 | -5/Factory | Botcube completed mutation into core form, armed with 2 guns. 8943 | -5/Factory | Garrison activated, responded to threat 9214 | -5/Factory | Garrison activated, responded to threat 9305 | -5/Factory | Destroyed by G-67 Veteran with Plasma Rifle Last Messages --------------- 09294_ G-50 Soldier destroyed. 09294_ U-05 Engineer lays Concrete. 09297_ Slug penetrates G-50 Soldier. 09298_ System corrupted: Gauss Rifle fused. 09298_ Gauss Rifle destroyed. 09298_ K-01 Serf collects debris. 09298_ U-05 Engineer lays Concrete. 09300_ Gauss Rifle destroyed. 09300_ U-05 Engineer lays Concrete. 09301_ Antigrav System destroyed. 09301_ Dropped Med. Storage Unit. 09301_ U-05 Engineer lays Concrete. 09302_ Dropped Imp. Remote Datajack. 09302_ U-05 Engineer lays Concrete. 09302_ K-01 Serf collects debris. 09302_ Dropped Imp. Medium Armor Plating. 09302_ U-05 Engineer lays Concrete. 09303_ K-01 Serf collects debris. 09304_ U-05 Engineer lays Concrete. 09305_ K-01 Serf collects debris. Map ----- +----------------------------------------------------+ | ## ] # + + # ## # | | ## # """ # #""" # # #"########### | | ## # """ # #""" # !* ##?????????? | | ## # """ # #?"" ## [ #?????????? | | ## # # # ="%*[ = #?????????? | | ## ######## #??#####"## ########### | | ## # #?????????# ! # | | ## # #?????????#"# ## ! | | + # ######## ##### # ### | | ## # ###?# | | ## # ##### #???# | | #?? # """ """ #?### #???# """ "" | | #####+### """ """???????# #???# """ "" | | """ """???????# #???# *" " | | * ??????#%#???# ** | | ! ! ??????# #???# =*%"*% | | ! ############## #???# * * | | # # #???# ! ! | | ###########+####### # # ###########+## | | #?# # # u #=*=!%! | | "" #?# """ """ + # # *%=!! % | | "" #?# """ """ #### g # *!!! | | "" #?# """ """ ## |b g k | | #?# # ! u %!k# | | #?# """ """ # gm !# | | #?# """ """ ## @ # | | #?????"" ""?? ## uu #####+########## | | #?????? ?????#### u # %% #?? | | ####?????? ????????# # #?? | | ?????????? ????????############## """""" #?? | | ?????????? ?????????????????????# """""" #?? | | ??????????###?????????????????????# """""" #?? | | ??????????????????????????????????# """""" #?? | | ??????????????????????????????????# #?? | | ??????????????????????????????????# """""" #?? | | ??????????????????????????????????# """""" #?? | | ??????????????????????????????????# """""" #?? | | ??????????????????????????????????# """""" #?? | | ??????????????????????????????????# #?? | | ??????????????????????????????????####+####+####?? | | ?????????????????????????????????????# #??# #????? | | ?????????????????????????????????????# #??# #????? | | ??????????????????????????############ #### #????? | | ?????????????????????????? !!] *%! #????? | | ????????????????????????? = % * = #????? | | ????????????????????????? #????? | | ????????????????????????? #######?? | | ????????????????????????? #?? ?? | | ???????????????????????????######### #? """ | | ???????????????????????????????????# #? """ | +----------------------------------------------------+ Best States ------------- Heat Dissipation 71 Coolant Potential 80 Energy Generation 25 Energy Capacity 350 Matter Stores 300 Matter Capacity 300 Sight Range 21 Terrain Scan Range 16 Terrain Scan Density 10 Additional Mass Support 9 Corruption Containment 8 Armor Coverage 225 Weapon Shielding 33 Evasion (%) 63 Targeting Accuracy 22 Target Analysis 9 Core Analysis 9 Recoil Reduction 2 Offensive Hacking 20 Defensive Hacking 22 Item Schematics ----------------- Antigrav System | -5/Factory | Scanalyzed Hyp. Gauss Rifle | -5/Factory | Scanalyzed Mic. Fission Core | -5/Factory | Scanalyzed Hvy. Linear Accelerator | -5/Factory | Scanalyzed Robot Schematics ------------------ None Fabricated ------------ Hyp. Gauss Rifle | x2 | -5/Factory Quantum Reactor | x2 | -5/Factory | Preloaded Repaired ---------- Battle Cannon | 46% | -5/Factory Imp. Linear Gravjet | 15% | -5/Factory | Broken Alien Tech Used ----------------- None Achievements -------------- Overkill Challenges ------------ None Game ------ Seed LinkedImprovedTrident Manual? 0 Play Time 01:38:12 Cumulative 302.6 hours Start 2025.06.17 @ 00:00:08 End 2025.06.17 @ 01:37:49 Sessions 1 Manual Loads 0 Difficulty Rogue Special Mode None Game No. 190 Rogue 190 Adventurer 0 Explorer 0 Win Type - Total 4 Types 2/0/1/1/0/0/0/0/0/0 Lore% 82 Gallery% 70 Achievement% 67 Wizard Run 0 Options --------- Layout 2 ASCII 0 Keyboard 1 Movement Vi Keybinds 0 Fullscreen 1 Font 16/Tamsyn Map View 55x47 Zoom Use 0% Tactical HUD 1 Map Filters NONE Filters NONE Steam 0 RUN: 277e1f37-5961-4f79-acce-2643d05048dc